Cogmind - Beta 12 *** ADVENTURER MODE // 2024.01.03 @ 20:45:56 Player: KoyamiKomachi Result: Destroyed by 0Y-W4X(z) with Zionite Laser-S Performance ------------- Evolutions (3) 1500 Regions Visited (11) 2200 Robots Destroyed (125) 625 Value Destroyed (3806) 3806 Prototype IDs (13) 260 Alien Tech Used (0) 0 Bonus (660) 660 TOTAL SCORE: 9051 Bonus ------- Follower Combat Kills 60 Met Imprinter 300 Was Imprinted 300 Cogmind --------- Core Integrity 0/700 Matter 243/300 Energy 100/100 System Corruption 0% Temperature Cool (9) Movement Core (350) Ox6 Location -7/Deep Caves Parts ------- > --- POWER (1) -------- (None) > --- PROPULSION (3) --- (None) > --- UTILITY (7) ------ Large Storage Unit Improved Signal Interpreter Makeshift Salvage Targeting Computer Advanced Targeting Computer Authchip [Device] > --- WEAPON (2) ------- (None) > --- INVENTORY (15) --- Light Angular Momentum Engine Improved Heat Sink Long-range Tractor Beam Hacking Drone Bay (1/1) Arc Projector Beamcaster Assault Cannon Assault Cannon Proton Missile Launcher Heavy Missile Launcher Enhanced Flamer RU-N14's Throwing Claymores (10) RU-N14's Throwing Claymores (9) Powered Hammer Ripper Peak State ------------ > --- POWER ------------ Light Angular Momentum Engine > --- PROPULSION ------- Light Treads Light Treads Wheel > --- UTILITY ---------- Large Storage Unit Improved Signal Interpreter Makeshift Salvage Targeting Computer Advanced Targeting Computer System Shield Bomb Factory No. 2 > --- WEAPON ----------- Makeshift Laser RU-N14's Throwing Claymores > --- INVENTORY -------- Light Angular Momentum Engine Improved Heat Sink Long-range Tractor Beam Hacking Drone Bay Arc Projector Heavy Laser Beamcaster Assault Cannon Assault Cannon Proton Missile Launcher Heavy Missile Launcher Enhanced Flamer RU-N14's Throwing Claymores Powered Hammer Ripper [Rating: 51] Favorites ----------- Power Light Angular Momentum Engine Engine Light Angular Momentum Engine Power Core Micro Nuclear Core Propulsion Light Treads Treads Light Treads Wheel Wheel Utility Large Storage Unit Device Advanced Heat Sink Storage Large Storage Unit Processor Advanced Targeting Computer Hackware System Shield Protection Medium Armor Plating Weapon Gauss Cannon Energy Gun Heavy EM Pulse Gun Ballistic Cannon Gauss Cannon Launcher Rocket Launcher Special Weapon RU-N14's Throwing Claymores Impact Weapon Powered Hammer Slashing Weapon Ripper Build | -11 -10 -9 -9 -9 -8 -8 -7 -7 -7 -7 -7 ------- Run | Jun Mat Mat Min Exi Min Mat Fac Low Low Zio Dee Slots Evolved 6 | . . 2 . . . 2 2 . . . . Power . | . . . . . . . . . . . . Propulsion 1 | . . . . . . . 1 . . . . Utility 5 | . . 2 . . . 2 1 . . . . Weapon . | . . . . . . . . . . . . Parts Attached 128 | 5 8 10 5 . 19 45 13 4 9 9 1 Power 9 | 1 1 1 1 . 1 2 1 . 1 . . Engine 8 | 1 1 1 1 . 1 2 . . 1 . . Core 1 | . . . . . . . 1 . . . . Reactor . | . . . . . . . . . . . . Propulsion 44 | 2 2 3 1 . 11 21 1 1 2 . . Treads 20 | 1 . 2 1 . 4 10 . . 2 . . Leg . | . . . . . . . . . . . . Wheel 24 | 1 2 1 . . 7 11 1 1 . . . Hover . | . . . . . . . . . . . . Flight . | . . . . . . . . . . . . Utility 39 | . 3 5 . . 2 13 4 1 4 7 . Device 11 | . . 1 . . 1 5 2 . . 2 . Storage 4 | . 2 . . . 1 . 1 . . . . Processor 9 | . 1 2 . . . 3 1 . 2 . . Hackware 4 | . . . . . . 1 . . 1 2 . Protection 11 | . . 2 . . . 4 . 1 1 3 . Artifact . | . . . . . . . . . . . . Weapon 36 | 2 2 1 3 . 5 9 7 2 2 2 1 Energy Gun 15 | 2 2 1 2 . 3 3 . . 1 . 1 Energy Cannon . | . . . . . . . . . . . . Ballistic Gun . | . . . . . . . . . . . . Ballistic Cannon 9 | . . . . . . 4 3 2 . . . Launcher 4 | . . . . . 1 1 2 . . . . Special Weapon 2 | . . . . . . . . . 1 1 . Impact Weapon 5 | . . . 1 . 1 1 2 . . . . Slashing Weapon 1 | . . . . . . . . . . 1 . Piercing Weapon . | . . . . . . . . . . . . Special Melee Weapon . | . . . . . . . . . . . . Unidentified Prototypes 3 | . . . . . . . . . . 3 . Parts Lost 24 | . . . . . 6 5 . 3 3 . 7 Power 2 | . . . . . 1 . . . . . 1 Propulsion 8 | . . . . . . 2 . 1 2 . 3 Utility 8 | . . . . . 1 3 . 2 1 . 1 Weapon 6 | . . . . . 4 . . . . . 2 Highest Loss Streak 6 | . . . . . 4 2 . 2 2 . 6 To Critical Strikes . | . . . . . . . . . . . . Average Slot Usage (%) 94 | . 91 92 100 100 96 96 99 97 86 92 83 Engine 7 | . 13 11 11 11 11 8 . . 5 7 6 Core 1 | . . . . . . . 6 7 1 . . Treads 14 | . 14 11 11 11 16 12 15 15 14 15 14 Wheel 7 | . 14 10 11 11 5 4 7 6 7 7 1 Device 6 | . . 2 . . 8 16 14 12 . . . Storage 8 | . 17 11 11 11 11 9 6 7 7 7 7 Processor 16 | . 3 18 22 22 13 14 15 15 15 23 23 Hackware 4 | . . . . . . 5 7 7 7 7 7 Protection 7 | . . 5 11 11 8 5 7 6 8 6 6 Energy Gun 7 | . 28 21 21 22 7 3 3 . 1 7 12 Ballistic Cannon 4 | . . . . . . 9 4 14 11 . . Launcher 1 | . . . . . 7 2 2 . . . . Special Weapon 1 | . . . . . . . . . 1 5 1 Impact Weapon 1 | . . . . . 6 2 3 . . . . Naked Turns . | . . . . . . . . . . . . Heaviest Build 65 | 7 16 21 26 26 41 60 45 49 65 59 59 Greatest Support 51 | 10 20 23 28 28 51 48 40 40 40 10 40 Greatest Overweight (x) 18 | . 1 1 1 1 3 5 4 4 5 5 18 Average Overweight (x) 2 | . . . . . 1 1 1 3 2 4 2 Largest Inventory Capacity 15 | 5 8 8 8 8 15 15 15 15 15 15 15 Average Capacity 13 | 5 7 8 8 8 13 15 14 15 15 15 15 Most Carried 15 | 5 8 8 8 8 15 15 15 15 15 15 15 Average Carried 12 | 2 7 7 7 8 9 13 14 14 14 14 15 Final Capacity 15 | 5 8 8 8 8 15 15 15 15 15 15 15 Final Carried 15 | 5 8 8 8 8 15 15 15 14 15 15 15 Class Distribution -------------------- 47% | Mutant 43% | Hacker-Mutant 9% | Scavenger-Mutant Dominant Class ---------------- Mutant | -10/Materials Mutant | -9/Materials Mutant | -9/Mines Mutant | -9/Exiles Mutant | -8/Mines Hacker-Mutant | -8/Materials Scavenger-Mutant | -7/Factory Hacker-Mutant | -7/Lower Caves Hacker-Mutant | -7/Lower Caves Hacker-Mutant | -7/Zion Mutant | -7/Deep Caves Resources | -11 -10 -9 -9 -9 -8 -8 -7 -7 -7 -7 -7 ----------- Run | Jun Mat Mat Min Exi Min Mat Fac Low Low Zio Dee Matter Collected 2752 | 212 198 80 90 . 231 980 346 297 246 72 . Remotely 184 | . . . . . . . 184 . . . . Salvage Created 4710 | . 378 462 60 . 914 1664 772 154 286 . 20 Parts 215 | . 22 28 4 . 32 66 41 7 15 . . Haulers Intercepted 7 | . 1 . . . . 4 2 . . . . Recyclers Shooed 2 | . . . . . 1 . 1 . . . . Parts Field Recycled . | . . . . . . . . . . . . Retrieved Matter . | . . . . . . . . . . . . Parts Self-Destructed 22 | . . . . . . . . 18 4 . . Prevented . | . . . . . . . . . . . . Kills | -11 -10 -9 -9 -9 -8 -8 -7 -7 -7 -7 -7 ------- Run | Jun Mat Mat Min Exi Min Mat Fac Low Low Zio Dee Combat Hostiles Destroyed 88 | . 8 8 3 . 18 28 9 4 7 . 3 Melee 5 | . . . . . 4 . 1 . . . . Guns 35 | . 8 8 3 . 4 8 2 . . . 2 Cannons 24 | . . . . . . 11 2 4 7 . . AOE 16 | . . . . . 2 9 4 . . . 1 Classes Destroyed 17 | . 5 2 . . 1 4 1 1 2 . 1 Worker 8 | . 1 . . . 4 . 3 . . . . Builder 4 | . . . . . . 1 3 . . . . Tunneler 1 | . . . . . 1 . . . . . . Hauler 7 | . 1 . . . . 4 2 . . . . Recycler 12 | . 1 . . . 1 5 5 . . . . Operator 2 | . . . . . . 2 . . . . . Watcher 6 | . . 1 . . . 2 3 . . . . Swarmer 19 | . 6 . 3 . 6 . 4 . . . . Grunt 40 | . 2 5 . . 12 20 . 1 . . . Brawler 2 | . . . . . . 1 . 1 . . . Sentry 10 | . . 3 . . . 6 . 1 . . . Hunter 1 | . . . . . . 1 . . . . . Programmer 7 | . . . . . . . 5 1 1 . . Samaritan 1 | . . . . . . . . 1 . . . Assembled 3 | . . . . . . . . . . . 3 Thug 4 | . . . . . . . . . 4 . . Butcher 1 | . . . . . . . . . 1 . . Mutant 1 | . . . . . . . . . 1 . . Best Kill Streak 6 | . 4 3 3 . 4 6 5 2 6 . 2 Combat Bots Only 6 | . 3 2 3 . 4 4 4 2 6 . 2 Max Kills in Single Turn 2 | . 2 1 1 . 1 2 2 1 1 . 1 Gunslinging . | . . . . . . . . . . . . Exploded 2 | . . . . . 1 2 2 . . . 1 Melee 1 | . . . . . 1 . 1 . . . . Uniques/NPCs Destroyed . | . . . . . . . . . . . . Combat | -11 -10 -9 -9 -9 -8 -8 -7 -7 -7 -7 -7 -------- Run | Jun Mat Mat Min Exi Min Mat Fac Low Low Zio Dee Damage Taken 5086 | . 146 102 25 . 926 1143 425 306 480 . 1533 Core 994 | . 7 11 17 . 128 114 59 64 48 . 546 Absorbed by Shields 12 | . . . . . . 12 . . . . . Regen/Repaired (Parts) 382 | . 15 47 . . . 89 231 . . . . Core Remaining (%) 84 | 100 97 . . . 61 79 . . . . . Volleys Fired 232 | . 17 16 5 . 36 79 45 14 11 . 9 Largest 2 | . 2 2 2 . 2 2 2 2 2 . 1 Hottest 138 | . 90 90 100 . 100 138 105 96 96 . 50 Shots Fired 428 | . 34 32 10 . 67 145 77 28 26 . 9 Gun 235 | . 34 32 10 . 61 57 32 . 1 . 8 Cannon 167 | . . . . . . 76 38 28 25 . . Launcher 25 | . . . . . 6 12 7 . . . . Special 1 | . . . . . . . . . . . 1 Kinetic 167 | . . . . . . 76 38 28 25 . . Thermal 98 | . . . . . . 57 32 . 1 . 8 Explosive 26 | . . . . . 6 12 7 . . . 1 Electromagnetic 137 | . 34 32 10 . 61 . . . . . . Robot Hit Streak 33 | . 6 25 7 . 21 33 20 19 25 . 7 Robot Miss Streak 3 | . 2 2 2 . 1 3 2 1 1 . 1 Penetration Max . | . . . . . . . . . . . . Secondary Targets 4 | . 1 . 2 . . 1 . . . . . Max Gunslinging Chain 1 | . 1 . 1 . . 1 . . . . . Shots Hit Robots 378 | . 22 26 7 . 77 130 68 23 17 . 8 Core Hits 193 | . 15 13 3 . 22 89 27 8 11 . 5 Critical Kills 1 | . . . . . 1 . . . . . . Critical Parts Destroyed 6 | . . . . . 4 . 2 . . . . Critical Strikes 34 | . . 1 . . 6 8 8 4 5 . 2 Burn 13 | . . . . . . 6 5 . . . 2 Blast 12 | . . . . . . 2 1 4 5 . . Corrupt 2 | . . 1 . . 1 . . . . . . Smash 7 | . . . . . 5 . 2 . . . . Melee Attacks 53 | . . . 1 . 31 4 16 . . 1 . Impact 52 | . . . 1 . 31 4 16 . . . . Slashing 1 | . . . . . . . . . . 1 . Piercing . | . . . . . . . . . . . . Sneak Attacks 6 | . . . . . 4 1 1 . . . . Combat Hostiles 1 | . . . . . 1 . . . . . . Follow-up Attacks . | . . . . . . . . . . . . Damage Inflicted 10663 | . 364 390 78 . 2368 3330 2510 666 609 . 348 Guns 3289 | . 259 390 78 . 742 1106 595 . . . 119 Cannons 3007 | . . . . . . 1063 669 666 609 . . Explosions 2450 | . 105 . . . 423 1021 723 . . . 178 Melee 1866 | . . . . . 1203 140 523 . . . . Ramming . | . . . . . . . . . . . . Kinetic 3007 | . . . . . . 1063 669 666 609 . . Thermal 2098 | . 105 . . . 173 1106 595 . . . 119 Explosive 2172 | . . . . . 250 1021 723 . . . 178 Electromagnetic 1469 | . 259 390 78 . 742 . . . . . . Impact 1866 | . . . . . 1203 140 523 . . . . Slashing 51 | . . . . . . . . . . . 51 Piercing . | . . . . . . . . . . . . Highest Corruption 6 | . . . . . . . 2 4 6 6 . Average Corruption 3 | . . . . . . . 1 2 5 6 . Corruption Purged . | . . . . . . . . . . . . Corruption Blocked . | . . . . . . . . . . . . Effects 65 | . . . . . . . 4 12 43 6 . Message Errors 23 | . . . . . . . 1 5 14 3 . Matter Fused 15 | . . . . . . . 1 3 10 1 . Heat Flow Errors 6 | . . . . . . . 1 . 4 1 . Energy Discharges 5 | . . . . . . . . 2 2 1 . Parts Fused 1 | . . . . . . . . . 1 . . Data Loss (minor) 6 | . . . . . . . 1 2 3 . . Data Loss (major) 4 | . . . . . . . . . 4 . . Misfires 4 | . . . . . . . . . 4 . . Alerts 1 | . . . . . . . . . 1 . . Overload Shots . | . . . . . . . . . . . . Overflow Damage 1093 | . . . . . 641 73 290 68 7 . 14 Projectiles 232 | . . . . . 107 5 34 68 7 . 11 Explosions 70 | . . . . . 13 40 14 . . . 3 Melee 791 | . . . . . 521 28 242 . . . . Knockbacks 55 | . . . . . 3 28 18 . 6 . . Impact 7 | . . . . . 2 . 5 . . . . Kinetic 38 | . . . . . . 22 10 . 6 . . Secondary 10 | . . . . . 1 6 3 . . . . Self-Inflicted Damage 246 | . . . . . 56 182 8 . . . . Shots 8 | . . . . . 2 5 1 . . . . Rammed . | . . . . . . . . . . . . Targets Rammed . | . . . . . . . . . . . . Kicked . | . . . . . . . . . . . . Crushed . | . . . . . . . . . . . . Highest Temperature 363 | . 90 42 225 . 363 339 187 13 262 106 96 Average Temperature 104 | . 34 16 116 . 178 87 102 7 86 55 28 Received Heat Transfer 2205 | . 24 78 . . 621 579 . 156 216 . 531 Effects 2 | . . . . . 1 . . . 1 . . Shutdowns 1 | . . . . . 1 . . . . . . Interference 1 | . . . . . . . . . 1 . . Siege Activations . | . . . . . . . . . . . . Robots Corrupted 3 | . . . . . 3 . . . . . . Combat Hostiles 3 | . . . . . 3 . . . . . . Parts Fried 22 | . 1 1 . . 6 6 8 . . . . Impact Corruptions 30 | . . . . . 17 2 11 . . . . Robots Melted . | . . . . . . . . . . . . Combat Hostiles . | . . . . . . . . . . . . Parts Melted 7 | . . . . . . 2 5 . . . . Heat Transferred 4481 | . 200 . . . 100 2405 1369 . . . 407 Parts Sabotaged . | . . . . . . . . . . . . Parts Stolen . | . . . . . . . . . . . . Parts Stripped . | . . . . . . . . . . . . Power Chain Reactions 3 | . 1 . . . 2 . . . . . . Missiles Intercepted . | . . . . . . . . . . . . Alert | -11 -10 -9 -9 -9 -8 -8 -7 -7 -7 -7 -7 ------- Run | Jun Mat Mat Min Exi Min Mat Fac Low Low Zio Dee Peak Influence 392 | . 352 355 102 . 187 392 224 . . . . Initial 91 | . . 55 75 . . 31 91 . . . . Average 122 | . 167 208 77 . 53 161 106 . . . . Maximum Alert Level 1 | . 1 1 . . . 1 1 . . . . Low Security (%) 79 | 100 77 28 100 . 100 65 97 . . . . Level 1 20 | . 22 71 . . . 34 2 . . . . Level 2 . | . . . . . . . . . . . . Level 3 . | . . . . . . . . . . . . Level 4 . | . . . . . . . . . . . . Level 5 . | . . . . . . . . . . . . High Security . | . . . . . . . . . . . . Max Security . | . . . . . . . . . . . . Squads Dispatched 11 | . . 2 1 . . 4 4 . . . . Investigation 1 | . . . 1 . . . . . . . . Extermination 3 | . . . . . . . 3 . . . . Reinforcement 7 | . . 2 . . . 4 1 . . . . Assault . | . . . . . . . . . . . . Garrison . | . . . . . . . . . . . . Intercept . | . . . . . . . . . . . . Searches Triggered . | . . . . . . . . . . . . Construction Impeded 1 | . . . . . . . 1 . . . . Haulers Reinforced . | . . . . . . . . . . . . Active Scanning Responses . | . . . . . . . . . . . . Cargo Convoy Interrupts . | . . . . . . . . . . . . Stealth | -11 -10 -9 -9 -9 -8 -8 -7 -7 -7 -7 -7 --------- Run | Jun Mat Mat Min Exi Min Mat Fac Low Low Zio Dee Distress Signals 7 | . . 1 . . . 6 . . . . . Communications Jammed . | . . . . . . . . . . . . Distress Signals . | . . . . . . . . . . . . Times Spotted 125 | . 15 13 3 . 20 39 16 6 7 . 6 Peak Tracking Total 7 | . 6 3 3 . 4 7 4 3 6 . 3 Tactical Retreats 7 | . 2 1 . . 3 1 . . . . . Traps | -11 -10 -9 -9 -9 -8 -8 -7 -7 -7 -7 -7 ------- Run | Jun Mat Mat Min Exi Min Mat Fac Low Low Zio Dee Traps Triggered 1 | . . . . . . . . . 1 . . Indirectly . | . . . . . . . . . . . . Trap Hack Attempts . | . . . . . . . . . . . . Triggered . | . . . . . . . . . . . . Disarmed . | . . . . . . . . . . . . Reprogrammed . | . . . . . . . . . . . . Reused . | . . . . . . . . . . . . Traps Extracted . | . . . . . . . . . . . . Installed . | . . . . . . . . . . . . Triggered . | . . . . . . . . . . . . Machines | -11 -10 -9 -9 -9 -8 -8 -7 -7 -7 -7 -7 ---------- Run | Jun Mat Mat Min Exi Min Mat Fac Low Low Zio Dee Machines Disabled 9 | . . 2 . . . 3 4 . . . . Max in Single Turn 3 | . . 2 . . . 3 1 . . . . Machines Repaired . | . . . . . . . . . . . . Machines Sabotaged . | . . . . . . . . . . . . Overloaded Fab Kills . | . . . . . . . . . . . . Hacking | -11 -10 -9 -9 -9 -8 -8 -7 -7 -7 -7 -7 --------- Run | Jun Mat Mat Min Exi Min Mat Fac Low Low Zio Dee Machines Accessed 23 | . 5 5 1 . . 9 2 . 1 . . Terminals 12 | . 3 3 . . . 5 1 . . . . Fabricators . | . . . . . . . . . . . . Repair Stations 4 | . 1 1 . . . 1 1 . . . . Recycling Units 3 | . 1 . . . . 2 . . . . . Scanalyzers 2 | . . 1 . . . 1 . . . . . Garrison Access . | . . . . . . . . . . . . Total Hacks 77 | . 17 20 1 . . 35 3 . 1 . . Successful 48 | . 10 13 1 . . 21 2 . 1 . . Failed 28 | . 7 7 . . . 13 1 . . . . Catastrophic 1 | . . . . . . . 1 . . . . Database Lockouts 1 | . . . . . . 1 . . . . . Manual 29 | . 8 3 . . . 12 1 . . 5 . Terminals 37 | . 11 8 . . . 17 1 . . . . Fabricators . | . . . . . . . . . . . . Repair Stations 20 | . 5 8 . . . 5 2 . . . . Recycling Units 9 | . 1 . . . . 8 . . . . . Scanalyzers 9 | . . 4 . . . 5 . . . . . Garrison Access . | . . . . . . . . . . . . Terminal Hacks 17 | . 5 4 1 . . 6 . . 1 . . Record 1 | . . . . . . 1 . . . . . Robot Analysis 2 | . 1 1 . . . . . . . . . Prototype ID Bank 6 | . 2 1 . . . 3 . . . . . Open Door 2 | . . . 1 . . . . . 1 . . Locate Traps 6 | . 2 2 . . . 2 . . . . . Fabricator Hacks . | . . . . . . . . . . . . Repair Station Hacks 17 | . 4 7 . . . 4 2 . . . . Scan Component 9 | . 2 4 . . . 2 1 . . . . Repair 8 | . 2 3 . . . 2 1 . . . . Recycling Unit Hacks 5 | . 1 . . . . 4 . . . . . Report Inventory 2 | . 1 . . . . 1 . . . . . Retrieve Components 3 | . . . . . . 3 . . . . . Scanalyzer 7 | . . 2 . . . 5 . . . . . Insert Component 3 | . . 1 . . . 2 . . . . . Analyze 4 | . . 1 . . . 3 . . . . . Garrison Access Hacks . | . . . . . . . . . . . . Unauthorized Hacks 1 | . . . . . . 1 . . . . . Terminals 1 | . . . . . . 1 . . . . . Botnet 1 | . . . . . . 1 . . . . . Fabricators . | . . . . . . . . . . . . Repair Stations . | . . . . . . . . . . . . Recycling Units . | . . . . . . . . . . . . Scanalyzers . | . . . . . . . . . . . . Garrison Access . | . . . . . . . . . . . . Data Cores Recovered . | . . . . . . . . . . . . Used . | . . . . . . . . . . . . Hacking Detections 19 | . 4 5 . . . 8 2 . . . . Full Trace Events . | . . . . . . . . . . . . Feedback Events . | . . . . . . . . . . . . Feedback Blocked . | . . . . . . . . . . . . Robot Schematics Acquired 3 | . . . . . . . . . . 3 . Robots Built . | . . . . . . . . . . . . Authchips . | . . . . . . . . . . . . Time . | . . . . . . . . . . . . Total Robot Build Rating . | . . . . . . . . . . . . Part Schematics Acquired 19 | . . 1 . . . 2 . . . 16 . Parts Built . | . . . . . . . . . . . . Authchips . | . . . . . . . . . . . . Time . | . . . . . . . . . . . . Total Part Build Rating . | . . . . . . . . . . . . Parts Repaired 8 | . 2 3 . . . 2 1 . . . . Time 226 | . 52 84 . . . 64 26 . . . . Parts Recycled . | . . . . . . . . . . . . Recycled Matter . | . . . . . . . . . . . . Retrieved Matter . | . . . . . . . . . . . . Retrieved Components 9 | . . . . . . 9 . . . . . Parts Scanalyzed 3 | . . 1 . . . 2 . . . . . Part Schematics Acquired 3 | . . 1 . . . 2 . . . . . Parts Damaged . | . . . . . . . . . . . . Bothacking | -11 -10 -9 -9 -9 -8 -8 -7 -7 -7 -7 -7 ------------ Run | Jun Mat Mat Min Exi Min Mat Fac Low Low Zio Dee Used RIF Installer . | . . . . . . . . . . . . Robots Hacked . | . . . . . . . . . . . . Non-combat . | . . . . . . . . . . . . Combat . | . . . . . . . . . . . . Robot Hacks Applied . | . . . . . . . . . . . . Relay Couplers Released 3 | . . . . . . . 3 . . . . Programmers 3 | . . . . . . . 3 . . . . Fabnet Peak Effective % . | . . . . . . . . . . . . Robots Rewired . | . . . . . . . . . . . . Allies Hacked . | . . . . . . . . . . . . Hacks Repelled . | . . . . . . . . . . . . Allies | -11 -10 -9 -9 -9 -8 -8 -7 -7 -7 -7 -7 -------- Run | Jun Mat Mat Min Exi Min Mat Fac Low Low Zio Dee Total Allies 5 | . . . 1 . . . . . . 4 . Largest Group 4 | . . . 1 . . . . . . 4 . Highest-Rated Group 155 | . . . 31 . . . . . . 155 . Highest-Rated Ally 41 | . . . 31 . . . . . . 41 . Total Orders . | . . . . . . . . . . . . Ally Attacks 9 | . . . 9 . . . . . . . . Total Damage 110 | . . . 110 . . . . . . . . Kills 2 | . . . 2 . . . . . . . . Allies Corrupted . | . . . . . . . . . . . . Allies Melted . | . . . . . . . . . . . . Intel | -11 -10 -9 -9 -9 -8 -8 -7 -7 -7 -7 -7 ------- Run | Jun Mat Mat Min Exi Min Mat Fac Low Low Zio Dee Robot Analysis Total 2 | . 1 1 . . . . . . . . . Derelict Logs Recovered 4 | . . . 1 . . . . . 1 2 . Drone Launches . | . . . . . . . . . . . . Drone Recoveries . | . . . . . . . . . . . . Exploration | -11 -10 -9 -9 -9 -8 -8 -7 -7 -7 -7 -7 ------------- Run | Jun Mat Mat Min Exi Min Mat Fac Low Low Zio Dee Turns Passed 13195 | 57 500 692 757 478 1592 2288 1308 1116 1542 2369 496 Spaces Moved 7249 | 49 336 338 470 407 917 1090 487 731 712 1498 214 Core 10 | 4 . . . . . . . . . . 6 Treads 2371 | . 4 272 304 21 333 523 342 6 425 . 141 Legs . | . . . . . . . . . . . . Wheels 4868 | 45 332 66 166 386 584 567 145 725 287 1498 67 Hover . | . . . . . . . . . . . . Flight . | . . . . . . . . . . . . Fastest Speed 50 | 50 80 100 115 115 115 125 125 140 140 125 155 Average Speed 155 | 77 95 149 144 117 137 157 213 140 203 154 220 Slowest Speed 950 | 80 160 160 160 160 240 245 245 245 240 155 950 Overloaded Moves . | . . . . . . . . . . . . Propulsion Burnouts . | . . . . . . . . . . . . Robots Hopped . | . . . . . . . . . . . . Cave-ins Triggered . | . . . . . . . . . . . . Exploration Rate (%) 60 | 3 60 38 93 92 96 66 13 80 61 92 27 Regions Visited 11 Branch Regions 7 Pre-discovered Areas 2 | . . . . . . . . . 1 1 . Known Exits Taken 4 | . . . . . . . 1 1 1 1 . Unknown Exits Taken 7 | 1 1 1 1 1 1 1 . . . . . Scrap Searched 11 | . . . 1 . 2 . . . 5 3 . Spaces Dug 12 | . . . 1 . 5 1 5 . . . . Terrain Destroyed 254 | . 2 . 1 . 72 112 36 7 5 . 19 Melee 11 | . . . 1 . 5 1 4 . . . . Projectile 15 | . . . . . . 1 2 7 5 . . AOE 228 | . 2 . . . 67 110 30 . . . 19 Terrain Rammed . | . . . . . . . . . . . . Walls Destroyed . | . . . . . . . . . . . . Machines Disabled . | . . . . . . . . . . . . Actions | -11 -10 -9 -9 -9 -8 -8 -7 -7 -7 -7 -7 --------- Run | Jun Mat Mat Min Exi Min Mat Fac Low Low Zio Dee Total 8655 | 65 480 495 544 407 1128 1528 660 788 786 1546 228 Wait 789 | 7 107 118 49 1 103 227 67 39 42 25 4 Move 7238 | 48 335 337 469 406 916 1089 486 730 711 1497 214 Hop . | . . . . . . . . . . . . Pick Up 106 | 5 7 5 6 . 16 38 20 1 5 3 . Fast Attach 41 | 5 3 5 1 . 1 9 3 . 6 8 . Attach 28 | . 1 1 . . 6 14 2 2 2 . . Detach 15 | . . 1 . . 2 6 1 . 3 2 . Swap 59 | . 4 4 4 . 12 22 8 2 1 1 1 Drop 94 | . 6 8 9 . 5 40 12 . 5 9 . Fire 232 | . 17 16 5 . 36 79 45 14 11 . 9 Melee 53 | . . . 1 . 31 4 16 . . 1 . Ram . | . . . . . . . . . . . . Kick . | . . . . . . . . . . . . Crush . | . . . . . . . . . . . . Escape Stasis . | . . . . . . . . . . . . Rewire . | . . . . . . . . . . . . Trap . | . . . . . . . . . . . . Miscellaneous . | . . . . . . . . . . . . Route ------- -11/Junkyard -10/Materials (discovered 2 exits: *Mat / [*Min]) -9/Materials (discovered 2 exits: *Mat / *Min) -9/Mines (discovered 2 exits: *Mat / [*Exi]) -9/Exiles (discovered 2 exits: [*Min x2]) -8/Mines (discovered 2 exits: *Mat x2) -8/Materials (discovered 4 exits: *Fac x3 / [*Sto]) -7/Factory -7/Lower Caves -7/Lower Caves (discovered 2 exits: *Fac / *Zio) -7/Zion -7/Deep Caves History --------- Turn | Location | Event 36 | -11/Junkyard | Discovered new exit (range 12) 58 | -11/Junkyard | Entered Materials 251 | -10/Materials | Discovered new exit (range 7) 308 | -10/Materials | Build established: Mutant 440 | -10/Materials | Discovered new exit (range 14) 511 | -10/Materials | Repaired Com. Wheel 538 | -10/Materials | Repaired Lgt. Ion Engine 558 | -10/Materials | Entered another Materials area 558 | -9/Materials | Evolved 2 slots: Utility x2 936 | -9/Materials | Discovered new exit (range 18) 1001 | -9/Materials | Repaired Hvy. EM Pulse Gun 1029 | -9/Materials | Repaired Com. Wheel 1056 | -9/Materials | Repaired Com. Wheel 1175 | -9/Materials | Discovered new exit (range 13) 1250 | -9/Materials | Entered Mines 1270 | -9/Mines | Found a hidden stash of uninstalled traps 1368 | -9/Mines | Met a Derelict shopkeep closing up shop 1595 | -9/Mines | Discovered new exit (range 6) 1617 | -9/Mines | Received a Mining Laser from a helpful Derelict 1706 | -9/Mines | Received a Rocket Launcher from a helpful Derelict 1999 | -9/Mines | Deemed a non-threat by the Exiles lab entrance 2001 | -9/Mines | Discovered new exit (range 5) 2007 | -9/Mines | Entered Exiles 2007 | -9/Exiles | Found Exiles lab abandoned 2028 | -9/Exiles | Discovered new exit (range 16) 2471 | -9/Exiles | Discovered new exit (range 15) 2485 | -9/Exiles | Entered Mines 3071 | -8/Mines | Lost 4 parts (1p3w) 3317 | -8/Mines | Discovered new exit (range 5) 3976 | -8/Mines | Discovered new exit (range 6) 4077 | -8/Mines | Entered Materials 4077 | -8/Materials | Evolved 2 slots: Utility x2 4338 | -8/Materials | Repaired Ion Engine 4389 | -8/Materials | Repaired VSS Leg 4644 | -8/Materials | Central database locked down 4654 | -8/Materials | Discovered new exit (range 15) 4777 | -8/Materials | Discovered new exit (range 15) 5354 | -8/Materials | Build established: Hacker-Mutant 5700 | -8/Materials | Discovered new exit (range 6) 6222 | -8/Materials | Discovered new exit (range 8) 6365 | -8/Materials | Entered Factory 6365 | -7/Factory | Evolved 2 slots: Propulsion x1, Utility x1 6366 | -7/Factory | Identified exit to Lower Caves 6883 | -7/Factory | Repaired Lrg. Storage Unit 7109 | -7/Factory | Build established: Scavenger-Mutant 7673 | -7/Factory | Entered Lower Caves 7678 | -7/Lower Caves | Attracted the attention of an 0b10 checkpoint 7984 | -7/Lower Caves | Build established: Hacker-Mutant 8633 | -7/Lower Caves | Encountered a Warlord checkpoint 8719 | -7/Lower Caves | Discovered new exit (range 8) 8727 | -7/Lower Caves | Identified exit to Lower Caves 8789 | -7/Lower Caves | Entered another Lower Caves area 8817 | -7/Lower Caves | Discovered new exit (range 11) 8848 | -7/Lower Caves | Identified exit to Factory 8963 | -7/Lower Caves | Attacked by a faux Warlord 10132 | -7/Lower Caves | Encountered a Warlord checkpoint 10157 | -7/Lower Caves | Learned location of Zion (-7) 10202 | -7/Lower Caves | Discovered new exit (range 15) 10286 | -7/Lower Caves | Identified exit to Zion 10331 | -7/Lower Caves | Entered Zion 10516 | -7/Zion | System corruption cleaned by Quarantine Array 10555 | -7/Zion | Learned Factory emergency access door positions 10803 | -7/Zion | Acquired unknown access codes intercepted by a Zionite 11135 | -7/Zion | Learned location of 1 exit from Factory 11345 | -7/Zion | Given the Hacking Drone Bay 11349 | -7/Zion | Found Prototype Device 11349 | -7/Zion | Identified Hacking Drone Bay 11443 | -7/Zion | Given A8's code to call for help 11473 | -7/Zion | Found Prototype Special Weapon 11473 | -7/Zion | Identified RU-N14's Throwing Claymores 11480 | -7/Zion | Found RU-N14's Throwing Claymores 11579 | -7/Zion | Found Prototype Device 11579 | -7/Zion | Identified Bomb Factory No. 2 11780 | -7/Zion | Opened final containment barrier to the Deep Caves 11805 | -7/Zion | Discovered new exit (range 3) 11805 | -7/Zion | Saw the warning signs outside the Deep Caves entrance 11806 | -7/Zion | Identified exit to Deep Caves 12012 | -7/Zion | Build established: Mutant 12026 | -7/Zion | Imprinted 12028 | -7/Zion | Declared Zion's savior 12700 | -7/Zion | Entered Deep Caves 12700 | -7/Deep Caves | Accompanied by 4 allies 13135 | -7/Deep Caves | Attacked by Z-Imprinter 13152 | -7/Deep Caves | Z-Facility disabled 13180 | -7/Deep Caves | Core integrity fell below 50% 13190 | -7/Deep Caves | Core integrity fell below 20% 13196 | -7/Deep Caves | Destroyed by 0Y-W4X(z) with Zionite Laser-S Last Messages --------------- 12704_ MD-5YY(M) slips into the shadows. 12785_ Destroyed Asb. Hover Unit. 12785_ as-01825 destroyed. 12785_ Destroyed Asb. Hover Unit. 12790_ The unstable cave ceiling collapses. 12795_ as-90094 destroyed. 12807_ The unstable cave ceiling collapses. 12816_ Wheel destroyed. 12820_ as-91582 suffers critical hit (Burn). 12822_ as-91582 destroyed. 13122_ NEW_ZION: Z-Facility proximity alert. Z-Imprinter: GET AWAY FROM HERE! I've worked too hard for our future just to have you ruin everything! 13136_ LL-NHR(o) is busy at the terminal. 13152_ Z-Facility disabled. 13162_ Lgt. Treads destroyed. 13171_ Lgt. Angular Momentum Engine destroyed. 13175_ Hrd. Heavy Armor Plating destroyed. 13184_ Hvy. Laser destroyed. 13188_ Mak. Laser destroyed. Map ----- +----------------------------------------------------+ | | | | | | | | | | | | | | | | | | | | | | | | | | | | | | | | | ?????????????????????????????????????????????????? | | ??????????????????###############????????????????? | | ???????????????#### ##???????????????? | | ??????????????## #????###????????? | | ?????????????## ###### ##?????### | | ??????????? ## ## # #???### | | ??????????? ##### | | ?????????? | | ?????????? | | ?????????? @ | | ?????????? | | ?????????? """"" """ | | ????????????????""""""""""" z | | ?????????????????""""""" I | | ??????????????????"""""""" | | ????????????????????"""" | | ????????????????????"""""" " | | ?????????????????????""""""" | | ?????????????????????"""""" " | | ?????????????????????"""""""" | | ??????????????????????"" " " | | ????????????????????????" | | ???????????????????????? | | ????????????????????????" | | ???????????????????????"" | | ???????????????????????"""" | | ???????????????????????"""""" | | ?????????????????????????? | | ???????????????????????????? | | ????????????????????????????" | | ?????????????????????????????" | | ?????????????????????????????????????????????????? | | ?????????????????????????????????????????????????? | | ?????????????????????????????????????????????????? | +----------------------------------------------------+ Best States ------------- Heat Dissipation 64 Energy Generation 18 Energy Capacity 275 Matter Stores 400 Matter Capacity 400 Sight Range 18 Robot Scan Range 15 Terrain Scan Density 10 ECM Strength 1 Armor Coverage 825 Resistance: KI 20 Resistance: TH 20 Resistance: EX 20 Resistance: EM 35 Resistance: I 20 Resistance: S 20 Resistance: P 20 Evasion (%) 44 Targeting Accuracy 13 Core Analysis 6 Recoil Reduction 2 Particle Charging 15 Salvage Targeting 4 Offensive Hacking 10 Defensive Hacking 10 Authchip Count 1 Item Schematics ----------------- Imp. Treads | -9/Materials | Scanalyzed Imp. Heat Sink | -8/Materials | Scanalyzed Rocket Launcher | -8/Materials | Scanalyzed Mak. Transmission Jammer | -7/Zion | Archive Arm. Huge Wheel | -7/Zion | Archive Antigrav System | -7/Zion | Archive Imp. Component Analysis Suite | -7/Zion | Archive Imp. Deuterium Engine | -7/Zion | Archive Lrn. Missile Launcher | -7/Zion | Archive Shock Absorption System | -7/Zion | Archive Hvy. Machine Gun | -7/Zion | Archive Mak. Shrapnel Gun | -7/Zion | Archive Spk. Medium Treads | -7/Zion | Archive Transmission Jammer | -7/Zion | Archive Beamcaster | -7/Zion | Archive Launcher Guidance Computer | -7/Zion | Archive Hvy. Rocket Launcher | -7/Zion | Archive Arc Thrower | -7/Zion | Archive HERF Cannon | -7/Zion | Archive Robot Schematics ------------------ L-41 Fighter | -7/Zion | Archive S-27 Virus | -7/Zion | Archive A-02 Transporter | -7/Zion | Archive Fabricated ------------ Nothing Alien Tech Used ----------------- None Achievements -------------- None Challenges ------------ None Game ------ Seed BattleSensorAccelerator Manual? 0 Play Time 02:49:52 Cumulative 82.3 hours Start 2023.12.31 @ 23:32:46 End 2024.01.03 @ 20:45:56 Sessions 3 Manual Loads 0 Difficulty Adventurer Special Mode None Game No. 54 Rogue 19 Adventurer 34 Explorer 1 Win Type - Total 0 Types 0/0/0/0/0/0/0/0/0 Lore% 41 Gallery% 51 Achievement% 34 Wizard Run 0 Options --------- ASCII 0 Keyboard 1 Movement Numpad Keybinds 0 Fullscreen 2 Font 24/Smallcaps Map View 76x50 Tactical HUD 1 Map Filters NONE Filters NONE Steam 1 RUN: 7a085bf6-48ee-4f3f-9234-16ad46276226